fUSD/lending_fUSD_20251228
["ID","MTS","AMOUNT","RATE_DAILY","PERIOD"]
[399940986,1766909437789,-500.0,0.00014606,2]
[399940988,1766909437799,-500.0,0.00014606,2]
[399940990,1766909437808,-328.5132583,0.00014606,2]
[399940992,1766909437817,-500.0,0.00014606,2]
[399940994,1766909437826,-593.73795752,0.00014606,2]
[399940995,1766909437835,-500.0,0.00014606,2]
[399940996,1766909437844,-500.0,0.00014606,2]
[399940997,1766909437853,-500.0,0.00014606,2]
[399940999,1766909437863,-261.06682,0.00014606,2]
[399941001,1766909437872,-500.0,0.00014606,2]
[399941003,1766909437885,-500.0,0.00014606,2]
[399941005,1766909437894,-500.0,0.00014606,2]
[399941007,1766909437904,-500.0,0.00014606,2]
[399941009,1766909437913,-500.0,0.00014606,2]
[399941011,1766909437923,-500.0,0.00014606,2]
[399941013,1766909437932,-500.0,0.00014606,2]
[399941015,1766909437941,-198.53831803,0.00014606,2]
[399941017,1766909437951,-500.0,0.00014606,2]
[399941020,1766909437960,-500.0,0.00014606,2]
[399941021,1766909437969,-500.0,0.00014606,2]
[399941023,1766909437978,-500.0,0.00014606,2]
[399941025,1766909437987,-500.0,0.00014606,2]
[399941027,1766909437997,-500.0,0.00014606,2]
[399941029,1766909438006,-500.0,0.00014606,2]
[399941031,1766909438015,-500.0,0.00014606,2]
[399941033,1766909438024,-500.0,0.00014606,2]
[399941035,1766909438034,-500.0,0.00014606,2]
[399941037,1766909438043,-500.0,0.00014606,2]
[399941039,1766909438053,-500.0,0.00014606,2]
[399941041,1766909438063,-500.0,0.00014606,2]
[399941043,1766909438073,-500.0,0.00014606,2]
[399941045,1766909438082,-500.0,0.00014606,2]
[399941047,1766909438092,-500.0,0.00014606,2]
[399941048,1766909438102,-500.0,0.00014606,2]
[399941049,1766909438112,-500.0,0.00014606,2]
[399941050,1766909438121,-500.0,0.00014606,2]
[399941051,1766909438130,-350.0,0.00014606,2]
[399941052,1766909438140,-500.0,0.00014606,2]
[399941053,1766909438149,-500.0,0.00014606,2]
[399941054,1766909438157,-500.0,0.00014606,2]
[399941055,1766909438166,-1000000.0,0.00014607,2]
[399941056,1766909438181,-1000.0,0.00014617,2]
[399941057,1766909438190,-22689.7818,0.00014617,2]
[399941058,1766909438199,-176.26411881,0.00014626,2]
[399941059,1766909438209,-2680.6390919,0.00014626,2]
[399941060,1766909438217,-3016.94617447,0.00014626,2]
[399941061,1766909438226,-3367.44,0.00014685,14]
[399941062,1766909438235,-166.66,0.00014688,2]
[399941063,1766909438244,-3128.72260955,0.00014707,2]
[399941064,1766909438253,-207.4,0.00014708,2]
[399941065,1766909438262,-200.0,0.00014708,2]
[399941066,1766909438274,-521.13737359,0.00014708,2]
[399941067,1766909438283,-151.0,0.00014708,2]
[399941069,1766909438293,-151.0,0.00014708,2]
[399941070,1766909438303,-151.0,0.00014708,2]
[399941072,1766909438312,-916.439,0.00014715,2]
[399941074,1766909438323,-157.141,0.00014715,2]
[399941076,1766909438333,-500.0,0.00014716,2]
[399941078,1766909438342,-500.0,0.00014716,2]
[399941080,1766909438352,-602.50518509,0.00014716,2]
[399941104,1766909438617,-500.0,0.00014716,2]
[399941105,1766909438628,-500.0,0.00014716,2]
[399941106,1766909438638,-436.34250102,0.00014716,2]
[399941107,1766909438648,-527.08053546,0.00014716,2]
[399941108,1766909438658,-985.39,0.00014716,2]
[399941109,1766909438667,-507.55577616,0.00014716,2]
[399941110,1766909438676,-500.0,0.00014716,2]
[399941111,1766909438687,-500.0,0.00014716,2]
[399941112,1766909438697,-500.0,0.00014716,2]
[399941113,1766909438706,-500.0,0.00014716,2]
[399941114,1766909438715,-507.03588288,0.00014716,2]
[399941115,1766909438725,-500.0,0.00014716,2]
[399941116,1766909438735,-500.0,0.00014716,2]
[399941117,1766909438745,-512.17649256,0.00014716,2]
[399941118,1766909438754,-501.94875772,0.00014716,2]
[399941119,1766909438764,-2680.63909186,0.00014879,2]
[399941120,1766909438773,-3016.94617445,0.00014879,2]
[399941121,1766909438783,-500.0,0.00014879,2]
[399941122,1766909438792,-169.53966379,0.00014973,2]
[399941123,1766909438802,-500.0,0.00014973,2]
[399941124,1766909438812,-500.0,0.00014973,2]
[399941125,1766909438821,-500.0,0.00014973,2]
[399941126,1766909438830,-500.0,0.00014973,2]
[399941127,1766909438839,-500.0,0.00014973,2]
[399941128,1766909438849,-500.0,0.00014973,2]
[399941129,1766909438858,-500.0,0.00014973,2]
[399941130,1766909438868,-500.0,0.00014973,2]
[399941131,1766909438877,-300.0,0.00014987,2]
[399941132,1766909438886,-600.0,0.00014987,2]
[399941133,1766909438896,-195.0,0.00014987,2]
[399941134,1766909438906,-300.0,0.00014987,2]
[399941135,1766909438916,-721.70626962,0.00014987,2]
[399941136,1766909438926,-2500.0,0.00014987,2]
[399941137,1766909438935,-300.0,0.00014987,2]
[399941138,1766909438945,-250.0,0.00014987,2]
[399941139,1766909438954,-985.39,0.0001499,2]
[399941140,1766909438965,-166.66,0.00014991,2]
[399941141,1766909438975,-2680.63909186,0.00015131,2]
[399941142,1766909438985,-3016.94617445,0.00015131,2]
[399941143,1766909438994,-500.0,0.00015153,2]
[399941144,1766909439004,-1500.0,0.00015176,2]
[399941145,1766909439013,-200.0,0.00015256,2]
[399941146,1766909439023,-985.39,0.00015264,2]
[399941147,1766909439032,-524.1636589,0.00015287,2]
[399941148,1766909439041,-150.0,0.00015288,2]
[399941149,1766909439051,-150.0,0.00015288,2]
[399941150,1766909439060,-150.0,0.00015288,2]
[399941151,1766909439070,-150.0,0.00015288,2]
[399941152,1766909439078,-150.0,0.00015288,2]
[399941153,1766909439088,-150.0,0.00015288,2]
[399941154,1766909439098,-150.0,0.00015288,2]
[399941155,1766909439108,-150.0,0.00015288,2]
[399941156,1766909439118,-150.0,0.00015288,2]
[399941157,1766909439128,-150.0,0.00015288,2]
[399941158,1766909439138,-166.66,0.00015294,2]
[399941159,1766909439147,-194.97,0.00015306,2]
[399941160,1766909439157,-2680.63909186,0.00015384,2]
[399941161,1766909439166,-3016.94617445,0.00015384,2]
[399941162,1766909439179,-500.0,0.00015427,2]
[399941163,1766909439189,-150.0,0.00015429,2]
[399941164,1766909439198,-223.57337516,0.00015521,2]
[399941165,1766909439207,-1001.70391837,0.00015521,2]
[399941166,1766909439217,-847.68423544,0.00015521,2]
[399941167,1766909439226,-965.30149586,0.00015521,2]
[399941168,1766909439236,-1000.0,0.00015521,2]
[399941169,1766909439244,-1000.0,0.00015521,2]
[399941170,1766909439253,-1000.0,0.00015521,2]
[399941171,1766909439263,-1000.0,0.00015521,2]
[399941172,1766909439273,-151.0,0.00015521,2]
[399941173,1766909439282,-151.0,0.00015521,2]
[399941174,1766909439291,-15549.21626579,0.00015532,2]
[399941175,1766909439300,-985.39,0.00015538,2]
[399941176,1766909439310,-150.0,0.00015571,2]
[399941177,1766909439320,-166.66,0.00015596,2]
[399941178,1766909439329,-150.0,0.00015627,2]
[399941179,1766909439339,-150.0,0.00015627,2]
[399941180,1766909439348,-2680.63909186,0.00015637,2]
[399941181,1766909439358,-3016.94617445,0.00015637,2]
[399941182,1766909439367,-500.0,0.00015701,2]
[399941183,1766909439376,-202.91839635,0.00015709,2]
[399941184,1766909439386,-150.0,0.00015712,2]
[399941185,1766909439395,-150.0,0.00015712,2]
[399941186,1766909439404,-255.0,0.00015729,2]
[399941187,1766909439413,-985.39,0.00015812,2]
[399941188,1766909439422,-150.0,0.00015854,2]
[399941189,1766909439431,-150.0,0.00015854,2]
[399941190,1766909439440,-2680.63909186,0.00015889,2]
[399941191,1766909439449,-3016.94617445,0.00015889,2]
[399941192,1766909439459,-816.0,0.0001589,2]
[399941193,1766909439468,-420.0,0.00015895,2]
[399941194,1766909439478,-320.0,0.00015895,2]
[399941195,1766909439487,-166.66,0.00015899,2]
[399941196,1766909439496,-500.0,0.00015921,2]
[399941197,1766909439506,-1680.0,0.00015949,2]
[399941198,1766909439515,-150.0,0.00015967,2]
[399941199,1766909439525,-150.0,0.00015967,2]
[399941200,1766909439534,-500.0,0.00015975,2]
[399941201,1766909439543,-150.0,0.00015995,2]
[399941202,1766909439554,-250.0,0.00016037,2]
[399941203,1766909439564,-421.98541227,0.00016068,2]
[399941204,1766909439574,-1079.51075165,0.00016068,2]
[399941205,1766909439583,-985.39,0.00016085,2]
[399941206,1766909439592,-150.0,0.00016137,2]
[399941207,1766909439602,-150.0,0.00016137,2]
[399941208,1766909439611,-2680.63909186,0.00016142,2]
[399941209,1766909439621,-3016.94617445,0.00016142,2]
[399941210,1766909439630,-150.0,0.00016279,2]
[399941211,1766909439639,-150.0,0.00016307,2]
[399941212,1766909439649,-150.0,0.00016307,2]
[399941213,1766909439658,-985.39,0.00016359,2]
[399941214,1766909439668,-213.0,0.00016383,2]
[399941215,1766909439678,-213.0,0.00016392,2]
[399941216,1766909439688,-2680.63909186,0.00016395,2]
[399941217,1766909439699,-3016.94617445,0.00016395,2]
[399941218,1766909439708,-150.0,0.0001642,2]
[399941219,1766909439719,-150.0,0.0001642,2]
[399941220,1766909439736,-213.0,0.00016548,2]
[399941221,1766909439749,-150.0,0.00016562,2]
[399941222,1766909439759,-150.0,0.00016562,2]
[399941223,1766909439768,-213.0,0.00016573,2]
[399941224,1766909439779,-985.4,0.00016633,2]
[399941225,1766909439788,-150.0,0.00016647,2]
[399941226,1766909439798,-150.0,0.00016647,2]
[399941227,1766909439807,-2680.63909186,0.00016647,2]
[399941228,1766909439817,-3016.94617445,0.00016647,2]
[399941229,1766909439828,-150.0,0.00016703,2]
[399941230,1766909439837,-150.0,0.00016845,2]
[399941231,1766909439847,-2680.63909186,0.000169,2]
[399941232,1766909439856,-169.60595422,0.000169,2]
[399941233,1766909439866,-3016.94617445,0.000169,2]
[399941234,1766909439876,-202.91839635,0.000169,2]
[399941235,1766909439887,-1179.7204215,0.000169,2]
[399941236,1766909439897,-654.12142638,0.000169,2]
[399941237,1766909439908,-623.78580978,0.000169,2]
[399941238,1766909439918,-433.0,0.00016941,2]
[399941239,1766909439928,-213.0,0.00016941,2]
[399941240,1766909439939,-192.43582029,0.00016946,2]
[399941241,1766909439948,-69760.995346,0.00016956,2]
[399941242,1766909439959,-424.20807152,0.00016973,2]
[399941243,1766909439968,-481.0497289,0.00016973,2]
[399941244,1766909439977,-500.0,0.00016973,2]
[399941245,1766909439987,-500.0,0.00016973,2]
[399941246,1766909439996,-500.0,0.00016973,2]
[399941247,1766909440005,-500.0,0.00016973,2]
[399941248,1766909440014,-500.0,0.00016973,2]
[399941249,1766909440023,-150.0,0.00016986,2]
[399941250,1766909440033,-150.0,0.00016986,2]
[399941251,1766909440042,-150.0,0.00016986,2]
[399941252,1766909440051,-150.0,0.00016986,2]
[399941253,1766909440060,-150.0,0.00016986,2]
[399941254,1766909440070,-150.0,0.00016986,2]
[399941255,1766909440080,-150.0,0.00016986,2]
[399941256,1766909440089,-150.0,0.00016986,2]
[399941257,1766909440099,-150.0,0.00016986,2]
[399941258,1766909440108,-1573613.58551489,0.00017,2]
[399941259,1766909440124,-4730.92832196,0.00017,2]
[399941260,1766909440135,-5326.42315028,0.00017,2]
[399941261,1766909440151,-6058.19158,0.00017,2]
[399941264,1766909440219,-899386.24257982,0.00017,2]
[399941266,1766909440234,-1059.27883834,0.00017,2]
[399941270,1766909444542,-43942.5,0.00014607,2]
[399941348,1766909902724,-1379.446,0.00014314,2]
[399941349,1766909902745,-157.141,0.00014314,2]
[399941350,1766909902765,-300.0,0.0001432,2]
[399941351,1766909902786,-195.0,0.00014327,2]
[399941352,1766909902808,-250.0,0.00014339,2]
[399941353,1766909902830,-1000.0,0.00014507,2]
[399941354,1766909902852,-309.30831078,0.00014507,2]
[399941355,1766909902874,-1200.0,0.00014516,2]
[399941356,1766909902895,-300.0,0.00014516,2]
[399941357,1766909902916,-300.0,0.00014516,2]
[399941358,1766909902939,-2109.10468922,0.00014517,2]
[399941397,1766910631617,-1200.0,0.00013684,2]
[399941399,1766910631626,-300.0,0.00013684,2]
[399941401,1766910631635,-150.0,0.00013684,2]
[399941403,1766910631645,-241594.69,0.00013685,2]
[399941405,1766910631655,-398.7,0.00013699,2]
[399941407,1766910631664,-517.89,0.00013724,2]
[399941409,1766910631674,-1000.0,0.00014071,2]
[399941410,1766910631683,-1225.24,0.00014207,2]
[399941411,1766910631693,-346.25856632,0.00014406,2]
[399941412,1766910631702,-202.91839635,0.00014406,2]
[399941413,1766910631712,-3367.44,0.00014466,14]
[399941414,1766910631722,-192.43582029,0.00014495,2]
[399941415,1766910631734,-151.0,0.00014502,2]
[399941416,1766910631744,-151.0,0.00014502,2]
[399941417,1766910631753,-191.0,0.00014504,2]
[399941418,1766910631764,-500.0,0.00014504,2]
[399941419,1766910631773,-268.21888193,0.00014504,2]
[399941420,1766910631782,-588.34449972,0.00014504,2]
[399941421,1766910631793,-187.88767078,0.00014504,2]
[399941422,1766910631804,-500.0,0.00014504,2]
[399941423,1766910631814,-495.23112504,0.00014504,2]
[399941424,1766910631823,-157.64100285,0.00014504,2]
[399941425,1766910631842,-593.73795752,0.00014504,2]
[399941426,1766910631852,-500.0,0.00014504,2]
[399941427,1766910631862,-500.0,0.00014504,2]
[399941429,1766910631872,-500.0,0.00014504,2]
[399941431,1766910631881,-328.5132583,0.00014504,2]
[399941433,1766910631890,-500.0,0.00014504,2]
[399941435,1766910631900,-500.0,0.00014504,2]
[399941437,1766910631910,-500.0,0.00014504,2]
[399941439,1766910631919,-500.0,0.00014504,2]
[399941441,1766910631929,-500.0,0.00014504,2]
[399941443,1766910631940,-500.0,0.00014504,2]
[399941445,1766910631950,-500.0,0.00014504,2]
[399941447,1766910631960,-500.0,0.00014504,2]
[399941449,1766910631971,-402.4970456,0.00014504,2]
[399941451,1766910631980,-500.0,0.00014504,2]
[399941453,1766910631989,-500.0,0.00014504,2]
[399941455,1766910631999,-500.0,0.00014504,2]
[399941457,1766910632008,-500.0,0.00014504,2]
[399941459,1766910632018,-500.0,0.00014504,2]
[399941461,1766910632028,-500.0,0.00014504,2]
[399941463,1766910632037,-500.0,0.00014504,2]
[399941465,1766910632046,-500.0,0.00014504,2]
[399941467,1766910632055,-500.0,0.00014504,2]
[399941469,1766910632064,-500.0,0.00014504,2]
[399941471,1766910632074,-500.0,0.00014504,2]
[399941473,1766910632083,-500.0,0.00014504,2]
[399941475,1766910632093,-500.0,0.00014504,2]
[399941477,1766910632102,-500.0,0.00014504,2]
[399941479,1766910632111,-500.0,0.00014504,2]
[399941481,1766910632120,-500.0,0.00014504,2]
[399941482,1766910632129,-500.0,0.00014504,2]
[399941484,1766910632138,-500.0,0.00014504,2]
[399941485,1766910632148,-500.0,0.00014504,2]
[399941486,1766910632157,-500.0,0.00014504,2]
[399941487,1766910632166,-500.0,0.00014504,2]
[399941488,1766910632176,-500.0,0.00014504,2]
[399941489,1766910632185,-500.0,0.00014504,2]
[399941490,1766910632196,-500.0,0.00014504,2]
[399941491,1766910632207,-585.26099225,0.00014504,2]
[399941492,1766910632217,-500.0,0.00014504,2]
[399941493,1766910632228,-500.0,0.00014504,2]
[399941494,1766910632241,-500.0,0.00014504,2]
[399941495,1766910632251,-500.0,0.00014504,2]
[399941496,1766910632262,-500.0,0.00014504,2]
[399941497,1766910632272,-500.0,0.00014504,2]
[399941498,1766910632286,-500.0,0.00014504,2]
[399941499,1766910632297,-500.0,0.00014504,2]
[399941500,1766910632306,-500.0,0.00014504,2]
[399941501,1766910632315,-500.0,0.00014504,2]
[399941502,1766910632325,-500.0,0.00014504,2]
[399941503,1766910632335,-500.0,0.00014504,2]
[399941504,1766910632345,-500.0,0.00014504,2]
[399941505,1766910632355,-150.0,0.00014504,2]
[399941506,1766910632366,-500.0,0.00014504,2]
[399941507,1766910632376,-500.0,0.00014504,2]
[399941508,1766910632385,-500.0,0.00014504,2]
[399941509,1766910632395,-500.0,0.00014504,2]
[399941510,1766910632404,-500.0,0.00014504,2]
[399941511,1766910632414,-200.81930063,0.00014504,2]
[399941512,1766910632425,-394.36092162,0.00014504,2]
[399941513,1766910632435,-347519.68666014,0.00014505,2]
[399941514,1766910632449,-1818.80886338,0.00014505,2]
[399941515,1766910632460,-79426.0786456,0.00014505,2]
[399941516,1766910632473,-259053.64461415,0.00014505,2]
[399941517,1766910632486,-1254.41808677,0.00014505,2]
[399941518,1766910632497,-547.77308168,0.00014505,2]
[399941519,1766910632512,-1000.0,0.00014505,2]
[399941520,1766910632523,-501.00324206,0.00014505,2]
[399941521,1766910632534,-805.18595638,0.00014505,2]
[399941523,1766910637739,-32510.26130911,0.00014505,2]
[399941524,1766910637751,-88500.0,0.00014505,2]
[399941525,1766910637763,-187063.13954073,0.00014505,2]
[399941526,1766910637772,-1000.0,0.00014507,2]
[399941527,1766910637782,-2500.0,0.00014507,2]
[399941528,1766910637791,-3128.72260955,0.00014595,2]
[399941529,1766910637801,-200.0,0.00014598,2]
[399941530,1766910637810,-500.0,0.00014598,2]
[399941531,1766910637820,-151.0,0.00014598,2]
[399941532,1766910637829,-151.0,0.00014598,2]
[399941533,1766910637838,-151.0,0.00014598,2]
[399941534,1766910637848,-151.0,0.00014598,2]
[399941535,1766910637858,-151.0,0.00014598,2]
[399941536,1766910637867,-151.0,0.00014598,2]
[399941537,1766910637877,-151.0,0.00014598,2]
[399941538,1766910637886,-151.0,0.00014598,2]
[399941539,1766910637895,-151.0,0.00014598,2]
[399941540,1766910637904,-151.0,0.00014598,2]
[399941541,1766910637914,-151.0,0.00014598,2]
[399941542,1766910637927,-151.0,0.00014598,2]
[399941543,1766910637937,-151.0,0.00014598,2]
[399941545,1766910637947,-151.0,0.00014598,2]
[399941547,1766910637956,-151.0,0.00014598,2]
[399941549,1766910637969,-151.0,0.00014598,2]
[399941551,1766910637980,-151.0,0.00014598,2]
[399941553,1766910637990,-151.0,0.00014598,2]
[399941554,1766910637999,-151.0,0.00014598,2]
[399941556,1766910638009,-151.0,0.00014598,2]
[399941557,1766910638020,-151.0,0.00014598,2]
[399941558,1766910638031,-200.0,0.00014598,2]
[399941559,1766910638041,-151.0,0.00014598,2]
[399941560,1766910638052,-151.0,0.00014598,2]
[399941561,1766910638063,-151.0,0.00014598,2]
[399941562,1766910638073,-151.0,0.00014598,2]
[399941563,1766910638083,-151.0,0.00014598,2]
[399941564,1766910638092,-151.0,0.00014598,2]
[399941567,1766910638102,-151.0,0.00014598,2]
[399941569,1766910638111,-153.66184867,0.00014598,2]
[399941570,1766910638121,-500.0,0.00014598,2]
[399941571,1766910638134,-500.0,0.00014598,2]
[399941572,1766910638143,-500.0,0.00014598,2]
[399941573,1766910638153,-521.13737359,0.00014598,2]
[399941574,1766910638162,-836.26,0.00014598,2]
[399941575,1766910638172,-157.141,0.00014598,2]
[399941576,1766910638181,-1103.557,0.00014598,2]
[399941577,1766910638191,-151.0,0.00014603,2]
[399941578,1766910638205,-509.03802287,0.00014604,2]
[399941579,1766910638478,-500.0,0.00014606,2]
[399941580,1766910638488,-500.0,0.00014606,2]
[399941581,1766910638497,-552.19228911,0.00014606,2]
[399941582,1766910638507,-500.0,0.00014606,2]
[399941583,1766910638517,-502.50439874,0.00014606,2]
[399941584,1766910638526,-500.0,0.00014606,2]
[399941585,1766910638535,-500.0,0.00014606,2]
[399941586,1766910638545,-500.0,0.00014606,2]
[399941587,1766910638554,-500.0,0.00014606,2]
[399941588,1766910638563,-500.0,0.00014606,2]
[399941589,1766910638573,-500.0,0.00014606,2]
[399941590,1766910638582,-336.39873127,0.00014606,2]
[399941591,1766910638591,-502.69145487,0.00014606,2]
[399941592,1766910638601,-500.0,0.00014606,2]
[399941593,1766910638610,-500.0,0.00014606,2]
[399941594,1766910638619,-500.0,0.00014606,2]
[399941595,1766910638629,-621.72362606,0.00014606,2]
[399941596,1766910638640,-500.0,0.00014606,2]
[399941597,1766910638649,-500.0,0.00014606,2]
[399941598,1766910638659,-500.0,0.00014606,2]
[399941599,1766910638668,-526.32491477,0.00014606,2]
[399941600,1766910638678,-500.0,0.00014606,2]
[399941601,1766910638687,-500.0,0.00014606,2]
[399941602,1766910638696,-500.0,0.00014606,2]
[399941603,1766910638705,-500.0,0.00014606,2]
[399941604,1766910638715,-500.0,0.00014606,2]
[399941605,1766910638725,-500.0,0.00014606,2]
[399941606,1766910638737,-500.0,0.00014606,2]
[399941607,1766910638746,-500.0,0.00014606,2]
[399941608,1766910638756,-500.0,0.00014606,2]
[399941609,1766910638766,-500.0,0.00014606,2]
[399941610,1766910638775,-500.0,0.00014606,2]
[399941611,1766910638785,-500.0,0.00014606,2]
[399941612,1766910638794,-500.0,0.00014606,2]
[399941613,1766910638803,-649.44280484,0.00014606,2]
[399941614,1766910638813,-500.0,0.00014606,2]
[399941615,1766910638823,-500.0,0.00014606,2]
[399941616,1766910638832,-500.0,0.00014606,2]
[399941617,1766910638842,-500.0,0.00014606,2]
[399941618,1766910638851,-527.08053546,0.00014606,2]
[399941619,1766910638861,-505.80761707,0.00014606,2]
[399941620,1766910638871,-501.94875772,0.00014606,2]
[399941621,1766910638880,-500.0,0.00014606,2]
[399941622,1766910638890,-500.0,0.00014606,2]
[399941623,1766910638899,-500.0,0.00014606,2]
[399941624,1766910638909,-500.0,0.00014606,2]
[399941625,1766910638919,-500.0,0.00014606,2]
[399941626,1766910638928,-500.0,0.00014606,2]
[399941627,1766910638938,-500.0,0.00014606,2]
[399941628,1766910638947,-500.0,0.00014606,2]
[399941629,1766910638957,-562.55426662,0.00014606,2]
[399941630,1766910638967,-500.0,0.00014606,2]
[399941631,1766910638977,-500.0,0.00014606,2]
[399941632,1766910638987,-500.0,0.00014606,2]
[399941633,1766910638997,-500.0,0.00014606,2]
[399941634,1766910639006,-500.0,0.00014606,2]
[399941635,1766910639016,-500.0,0.00014606,2]
[399941636,1766910639025,-510.54716072,0.00014606,2]
[399941637,1766910639035,-500.0,0.00014606,2]
[399941638,1766910639045,-500.0,0.00014606,2]
[399941639,1766910639057,-512.17649256,0.00014606,2]
[399941640,1766910639066,-176.26411881,0.00014616,2]
[399941641,1766910639076,-165.1108,0.00014617,2]
[399941642,1766910639085,-29551.5358,0.00014617,2]
[399941643,1766910639095,-346.25856628,0.00014762,2]
[399941644,1766910639104,-2751.0,0.00014788,2]
[399941645,1766910639115,-255.0,0.00014806,2]
[399941646,1766910639125,-836.26,0.00014872,2]
[399941647,1766910639135,-807.31,0.00014909,2]
[399941648,1766910639145,-500.0,0.00014973,2]
[399941649,1766910639155,-500.0,0.00014973,2]
[399941650,1766910639164,-500.0,0.00014973,2]
[399941651,1766910639174,-500.0,0.00014973,2]
[399941652,1766910639184,-169.53966379,0.00014973,2]
[399941653,1766910639194,-500.0,0.00014973,2]
[399941654,1766910639203,-500.0,0.00014973,2]
[399941655,1766910639213,-500.0,0.00014973,2]
[399941656,1766910639222,-174.92808548,0.00014973,2]
[399941657,1766910639231,-163.02384966,0.00014973,2]
[399941658,1766910639240,-632.31603684,0.00014973,2]
[399941659,1766910639249,-500.0,0.00014973,2]
[399941660,1766910639258,-162.19608931,0.00014973,2]
[399941661,1766910639268,-507.4808143,0.00014973,2]
[399941662,1766910639277,-10559.75,0.00014993,2]
[399941663,1766910639287,-5014.92,0.00014999,2]
[399941664,1766910639296,-2042.52030711,0.00015,2]
[399941665,1766910639305,-21378.21540369,0.00015,2]
[399941666,1766910639315,-1155.76996984,0.00015,2]
[399941667,1766910639325,-33612.87900818,0.00015,2]
[399941668,1766910639334,-1680.0,0.00015052,2]
[399941669,1766910639344,-300.0,0.00015052,2]
[399941670,1766910639353,-354.59337408,0.00015052,2]
[399941671,1766910639362,-195.0,0.00015052,2]
[399941672,1766910639372,-250.0,0.00015068,2]
[399941673,1766910639381,-250.0,0.00015068,2]
[399941674,1766910639391,-154.86,0.0001509,2]
[399941675,1766910639400,-346.25856628,0.00015119,2]
[399941676,1766910639410,-200.0,0.00015146,2]
[399941677,1766910639420,-836.26,0.00015146,2]
[399941678,1766910639430,-202.91839635,0.00015153,2]
[399941679,1766910639439,-150.0,0.00015288,2]
[399941680,1766910639448,-150.0,0.00015288,2]
[399941681,1766910639457,-150.0,0.00015288,2]
[399941682,1766910639467,-150.0,0.00015288,2]
[399941683,1766910639476,-150.0,0.00015288,2]
[399941684,1766910639485,-150.0,0.00015288,2]
[399941685,1766910639494,-150.0,0.00015288,2]
[399941686,1766910639504,-150.0,0.00015288,2]
[399941687,1766910639513,-150.0,0.00015288,2]
[399941688,1766910639522,-150.0,0.00015288,2]
[399941689,1766910639532,-1517.64,0.000153,2]
[399941690,1766910639541,-506.31384754,0.000154,2]
[399941691,1766910639550,-836.26,0.0001542,2]
[399941692,1766910639559,-150.0,0.00015429,2]
[399941693,1766910639569,-346.25856628,0.00015475,2]
[399941694,1766910639578,-300.0,0.00015478,2]
[399941695,1766910639588,-1000.0,0.00015521,2]
[399941696,1766910639598,-847.68423544,0.00015521,2]
[399941697,1766910639607,-1001.70391837,0.00015521,2]
[399941698,1766910639616,-1000.0,0.00015521,2]
[399941699,1766910639625,-223.57337516,0.00015521,2]
[399941700,1766910639635,-1000.0,0.00015521,2]
[399941701,1766910639646,-1000.0,0.00015521,2]
[399941702,1766910639654,-997.74933683,0.00015521,2]
[399941703,1766910639663,-150.0,0.00015571,2]
[399941704,1766910639673,-166.66,0.00015597,2]
[399941705,1766910639681,-500.0,0.000156,2]
[399941706,1766910639692,-209.97,0.00015615,2]
[399941708,1766910639702,-150.0,0.00015627,2]
[399941709,1766910639713,-150.0,0.00015627,2]